lending/lending_fUSD_20241212
["ID","MTS","AMOUNT","RATE_DAILY","PERIOD"]
[345112926,1734024647313,-603.13,0.00021044,2]
[345112927,1734024647323,-500.0,0.00021044,2]
[345112928,1734024647332,-787.45,0.00021044,2]
[345112929,1734024647344,-888.7,0.00021044,2]
[345112930,1734024647353,-868.32,0.00021044,2]
[345112931,1734024647363,-500.0,0.00021044,2]
[345112932,1734024647373,-500.0,0.00021044,2]
[345112933,1734024647382,-500.0,0.00021044,2]
[345112934,1734024647392,-500.0,0.00021044,2]
[345112935,1734024647401,-657.95,0.00021044,2]
[345112936,1734024647411,-500.0,0.00021044,2]
[345112937,1734024647420,-1421.73,0.00021044,2]
[345112938,1734024647430,-500.0,0.00021044,2]
[345112939,1734024647440,-500.0,0.00021044,2]
[345112940,1734024647449,-623.63,0.00021044,2]
[345112941,1734024647459,-500.0,0.00021044,2]
[345112942,1734024647469,-665.77,0.00021044,2]
[345112943,1734024647478,-500.0,0.00021044,2]
[345112944,1734024647487,-702.96,0.00021044,2]
[345112945,1734024647497,-500.0,0.00021044,2]
[345112946,1734024647506,-1963.05202227,0.00021056,2]
[345112947,1734024647518,-500.0,0.00021094,2]
[345112948,1734024647527,-331.70137243,0.00021094,2]
[345112949,1734024647537,-500.0,0.00021094,2]
[345112950,1734024647546,-500.0,0.00021094,2]
[345112951,1734024647556,-500.0,0.00021094,2]
[345112952,1734024647565,-500.0,0.00021094,2]
[345112953,1734024647575,-500.0,0.00021094,2]
[345112954,1734024647584,-500.0,0.00021094,2]
[345112955,1734024647594,-500.0,0.00021094,2]
[345112956,1734024647603,-649.51,0.00021094,2]
[345112957,1734024647613,-500.0,0.00021094,2]
[345112958,1734024647633,-500.0,0.00021094,2]
[345112959,1734024647645,-500.0,0.00021094,2]
[345112960,1734024647653,-617.85324319,0.00021094,2]
[345112961,1734024647662,-500.0,0.00021094,2]
[345112962,1734024647672,-500.0,0.00021094,2]
[345112963,1734024647684,-500.0,0.00021094,2]
[345112964,1734024647693,-500.0,0.00021094,2]
[345112965,1734024647703,-500.53,0.00021094,2]
[345112966,1734024647712,-500.0,0.00021094,2]
[345112967,1734024647722,-500.0,0.00021094,2]
[345112968,1734024647730,-558.36,0.00021094,2]
[345112969,1734024647737,-500.0,0.00021094,2]
[345112970,1734024647746,-500.0,0.00021094,2]
[345112971,1734024647755,-500.0,0.00021094,2]
[345112972,1734024647764,-987.01,0.00021095,2]
[345112973,1734024647773,-1437.18,0.00021095,2]
[345112974,1734024647783,-500.0,0.00021095,2]
[345112975,1734024647792,-500.0,0.00021095,2]
[345112976,1734024647801,-1075.73,0.00021095,2]
[345112977,1734024647811,-500.0,0.00021095,2]
[345112978,1734024647821,-500.0,0.00021095,2]
[345112979,1734024647830,-500.0,0.00021095,2]
[345112980,1734024647839,-500.0,0.0002113,2]
[345112981,1734024647848,-500.0,0.0002113,2]
[345112982,1734024647859,-500.0,0.0002113,2]
[345112983,1734024647868,-500.0,0.0002113,2]
[345112984,1734024647878,-500.0,0.0002113,2]
[345112985,1734024647887,-500.0,0.0002113,2]
[345112986,1734024647896,-914.89,0.0002113,2]
[345112987,1734024647905,-660.85,0.0002113,2]
[345112988,1734024647914,-500.0,0.0002113,2]
[345112989,1734024647923,-500.0,0.0002113,2]
[345112990,1734024647932,-500.0,0.0002113,2]
[345112991,1734024647942,-500.0,0.0002113,2]
[345112992,1734024647951,-500.0,0.0002113,2]
[345112993,1734024647960,-500.0,0.0002113,2]
[345112994,1734024647970,-500.0,0.0002113,2]
[345112995,1734024647979,-500.0,0.0002113,2]
[345112996,1734024647988,-500.0,0.0002113,2]
[345112997,1734024647997,-500.0,0.0002113,2]
[345112998,1734024648007,-500.0,0.0002113,2]
[345112999,1734024648016,-500.0,0.0002113,2]
[345113000,1734024648169,-398.02368365,0.0002113,2]
[345113001,1734024648180,-205.15,0.0002113,2]
[345113002,1734024648190,-503.31238848,0.0002113,2]
[345113003,1734024648200,-500.0,0.0002113,2]
[345113004,1734024648211,-500.0,0.0002113,2]
[345113005,1734024648221,-500.0,0.0002113,2]
[345113006,1734024648231,-500.0,0.0002113,2]
[345113007,1734024648241,-500.0,0.0002113,2]
[345113008,1734024648251,-500.0,0.0002113,2]
[345113009,1734024648261,-500.0,0.0002113,2]
[345113010,1734024648271,-500.0,0.0002113,2]
[345113011,1734024648282,-500.0,0.0002113,2]
[345113012,1734024648293,-500.0,0.0002113,2]
[345113013,1734024648303,-500.0,0.0002113,2]
[345113014,1734024648313,-1213.45,0.0002113,2]
[345113015,1734024648323,-500.0,0.0002113,2]
[345113016,1734024648333,-500.0,0.0002113,2]
[345113017,1734024648348,-500.0,0.0002113,2]
[345113018,1734024648359,-500.0,0.0002113,2]
[345113019,1734024648368,-500.0,0.0002113,2]
[345113020,1734024648378,-500.0,0.0002113,2]
[345113021,1734024648389,-514.14034008,0.0002113,2]
[345113022,1734024648398,-500.0,0.0002113,2]
[345113023,1734024648407,-500.0,0.0002113,2]
[345113024,1734024648417,-500.0,0.0002113,2]
[345113025,1734024648426,-1000.0,0.0002113,2]
[345113026,1734024648437,-500.0,0.0002113,2]
[345113027,1734024648446,-1010.93,0.0002113,2]
[345113028,1734024648455,-500.0,0.0002113,2]
[345113029,1734024648465,-500.0,0.0002113,2]
[345113030,1734024648475,-500.0,0.0002113,2]
[345113031,1734024648485,-344.52492143,0.0002113,2]
[345113032,1734024648495,-500.0,0.0002113,2]
[345113033,1734024648505,-500.0,0.0002113,2]
[345113034,1734024648514,-500.0,0.0002113,2]
[345113035,1734024648524,-500.0,0.0002113,2]
[345113036,1734024648534,-242.6539685,0.0002113,2]
[345113037,1734024648543,-500.0,0.0002113,2]
[345113038,1734024648553,-500.0,0.0002113,2]
[345113039,1734024648563,-500.0,0.0002113,2]
[345113040,1734024648572,-500.0,0.0002113,2]
[345113041,1734024648583,-500.0,0.0002113,2]
[345113042,1734024648593,-601.28,0.0002113,2]
[345113043,1734024648602,-500.96390465,0.0002113,2]
[345113044,1734024648613,-500.0,0.0002113,2]
[345113045,1734024648624,-500.0,0.0002113,2]
[345113046,1734024648640,-500.0,0.0002113,2]
[345113047,1734024648650,-500.0,0.0002113,2]
[345113048,1734024648665,-500.0,0.0002113,2]
[345113049,1734024648675,-500.0,0.0002113,2]
[345113050,1734024648685,-265.0,0.0002113,2]
[345113051,1734024648695,-500.0,0.0002113,2]
[345113052,1734024648704,-500.0,0.0002113,2]
[345113053,1734024648714,-500.0,0.0002113,2]
[345113054,1734024648723,-500.0,0.0002113,2]
[345113055,1734024648733,-500.45572911,0.0002113,2]
[345113056,1734024648743,-500.0,0.0002113,2]
[345113057,1734024648754,-500.0,0.0002113,2]
[345113058,1734024648763,-500.0,0.0002113,2]
[345113059,1734024648773,-500.0,0.0002113,2]
[345113060,1734024648783,-500.0,0.0002113,2]
[345113061,1734024648793,-500.0,0.0002113,2]
[345113062,1734024648803,-500.0,0.0002113,2]
[345113063,1734024648812,-500.0,0.0002113,2]
[345113064,1734024648821,-502.98903598,0.0002113,2]
[345113065,1734024648831,-500.0,0.0002113,2]
[345113066,1734024648841,-500.0,0.0002113,2]
[345113067,1734024648850,-500.0,0.0002113,2]
[345113068,1734024648860,-500.0,0.0002113,2]
[345113069,1734024648869,-500.0,0.0002113,2]
[345113070,1734024648883,-500.0,0.00021145,2]
[345113071,1734024648899,-500.0,0.00021145,2]
[345113072,1734024648909,-500.0,0.00021145,2]
[345113073,1734024648919,-500.0,0.00021145,2]
[345113074,1734024648928,-598.45,0.00021145,2]
[345113075,1734024648939,-617.5,0.00021145,2]
[345113076,1734024648949,-500.0,0.00021145,2]
[345113077,1734024648958,-630.37,0.00021145,2]
[345113078,1734024648969,-500.0,0.00021145,2]
[345113079,1734024648978,-500.0,0.00021145,2]
[345113080,1734024648989,-500.0,0.00021145,2]
[345113081,1734024648999,-500.0,0.00021145,2]
[345113082,1734024649009,-500.0,0.00021145,2]
[345113083,1734024649019,-1963.05202227,0.00021168,2]
[345113084,1734024649029,-161.37,0.0002118,2]
[345113085,1734024649038,-320.0,0.00021239,2]
[345113086,1734024649048,-500.0,0.00021267,2]
[345113087,1734024649058,-500.0,0.00021267,2]
[345113088,1734024649068,-678.38,0.00021267,2]
[345113089,1734024649078,-500.0,0.00021267,2]
[345113090,1734024649099,-653.16,0.00021267,2]
[345113091,1734024649109,-601.96,0.00021267,2]
[345113092,1734024649119,-500.0,0.00021267,2]
[345113093,1734024649134,-500.0,0.00021267,2]
[345113094,1734024649144,-500.0,0.00021267,2]
[345113095,1734024649154,-500.0,0.00021267,2]
[345113096,1734024649165,-500.0,0.00021267,2]
[345113097,1734024649176,-500.0,0.00021267,2]
[345113098,1734024649186,-728.32,0.00021267,2]
[345113099,1734024649196,-500.0,0.00021267,2]
[345113100,1734024649206,-500.0,0.00021267,2]
[345113101,1734024649216,-428.11146625,0.00021276,2]
[345113102,1734024649225,-1963.05202227,0.0002128,2]
[345113103,1734024649235,-500.0,0.00021299,2]
[345113104,1734024649245,-618.59,0.00021318,2]
[345113105,1734024649256,-500.0,0.00021318,2]
[345113106,1734024649267,-534.67,0.00021318,2]
[345113107,1734024649278,-498.88,0.00021318,2]
[345113108,1734024649289,-500.0,0.00021318,2]
[345113109,1734024649299,-603.13,0.00021318,2]
[345113110,1734024649310,-500.0,0.00021318,2]
[345113111,1734024649320,-787.45,0.00021318,2]
[345113112,1734024649330,-888.7,0.00021318,2]
[345113113,1734024649345,-868.32,0.00021318,2]
[345113114,1734024649356,-500.0,0.00021318,2]
[345113115,1734024649366,-503.45609238,0.00021318,2]
[345113116,1734024649378,-500.0,0.00021318,2]
[345113117,1734024649388,-500.0,0.00021318,2]
[345113118,1734024649398,-657.95,0.00021318,2]
[345113119,1734024649407,-500.0,0.00021318,2]
[345113120,1734024649418,-1421.73,0.00021318,2]
[345113121,1734024649428,-500.0,0.00021318,2]
[345113122,1734024649438,-500.0,0.00021318,2]
[345113123,1734024649447,-623.63,0.00021318,2]
[345113124,1734024649457,-500.0,0.00021318,2]
[345113125,1734024649467,-665.77,0.00021318,2]
[345113126,1734024649477,-500.0,0.00021318,2]
[345113127,1734024649488,-702.96,0.00021318,2]
[345113128,1734024649499,-500.0,0.00021318,2]
[345113129,1734024649509,-500.0,0.00021368,2]
[345113130,1734024649519,-500.0,0.00021368,2]
[345113131,1734024649529,-500.0,0.00021368,2]
[345113132,1734024649539,-500.0,0.00021368,2]
[345113133,1734024649548,-500.0,0.00021368,2]
[345113134,1734024649558,-500.0,0.00021368,2]
[345113135,1734024649568,-500.0,0.00021368,2]
[345113136,1734024649578,-500.0,0.00021368,2]
[345113137,1734024649588,-649.51,0.00021368,2]
[345113138,1734024649597,-500.0,0.00021368,2]
[345113139,1734024649607,-500.0,0.00021368,2]
[345113140,1734024649617,-500.0,0.00021368,2]
[345113141,1734024649629,-500.0,0.00021368,2]
[345113142,1734024649639,-500.0,0.00021368,2]
[345113143,1734024649650,-500.0,0.00021368,2]
[345113144,1734024649659,-500.0,0.00021368,2]
[345113145,1734024649670,-500.53,0.00021368,2]
[345113146,1734024649680,-500.0,0.00021368,2]
[345113147,1734024649690,-500.0,0.00021368,2]
[345113148,1734024649699,-558.36,0.00021368,2]
[345113149,1734024649710,-500.0,0.00021368,2]
[345113150,1734024649719,-500.0,0.00021368,2]
[345113151,1734024649729,-500.0,0.00021368,2]
[345113152,1734024649739,-987.01,0.00021369,2]
[345113153,1734024649749,-1437.18,0.00021369,2]
[345113154,1734024649759,-500.0,0.00021369,2]
[345113155,1734024649770,-500.0,0.00021369,2]
[345113156,1734024649780,-1075.73,0.00021369,2]
[345113157,1734024649789,-500.0,0.00021369,2]
[345113158,1734024649799,-500.0,0.00021369,2]
[345113159,1734024649809,-1963.05202227,0.00021392,2]
[345113160,1734024649820,-383.91,0.00021395,2]
[345113161,1734024649830,-3000.0,0.000214,2]
[345113162,1734024649840,-500.0,0.00021404,2]
[345113163,1734024649850,-500.0,0.00021404,2]
[345113164,1734024649860,-500.0,0.00021404,2]
[345113165,1734024649869,-500.0,0.00021404,2]
[345113166,1734024649880,-500.0,0.00021404,2]
[345113167,1734024649890,-914.89,0.00021404,2]
[345113168,1734024649900,-660.85,0.00021404,2]
[345113169,1734024649910,-500.0,0.00021404,2]
[345113170,1734024649920,-500.0,0.00021404,2]
[345113171,1734024649930,-500.0,0.00021404,2]
[345113172,1734024649940,-500.0,0.00021404,2]
[345113173,1734024649950,-500.0,0.00021404,2]
[345113174,1734024649960,-500.0,0.00021404,2]
[345113175,1734024649970,-500.0,0.00021404,2]
[345113176,1734024649980,-500.0,0.00021404,2]
[345113177,1734024649989,-500.0,0.00021404,2]
[345113178,1734024649999,-500.0,0.00021404,2]
[345113179,1734024650009,-500.0,0.00021404,2]
[345113180,1734024650019,-500.0,0.00021404,2]
[345113181,1734024650029,-500.0,0.00021404,2]
[345113182,1734024650040,-500.0,0.00021404,2]
[345113183,1734024650049,-506.29008162,0.00021404,2]
[345113184,1734024650059,-1213.45,0.00021404,2]
[345113185,1734024650068,-500.0,0.00021404,2]
[345113186,1734024650078,-500.0,0.00021404,2]
[345113187,1734024650088,-500.0,0.00021404,2]
[345113188,1734024650098,-500.0,0.00021404,2]
[345113189,1734024650107,-500.0,0.00021404,2]
[345113190,1734024650117,-500.0,0.00021404,2]
[345113191,1734024650126,-500.0,0.00021404,2]
[345113192,1734024650137,-332.78140525,0.00021404,2]
[345113193,1734024650146,-500.0,0.00021404,2]
[345113194,1734024650155,-1000.0,0.00021404,2]
[345113195,1734024650164,-1010.93,0.00021404,2]
[345113196,1734024650176,-500.0,0.00021404,2]
[345113197,1734024650186,-500.0,0.00021404,2]
[345113198,1734024650195,-151.26046623,0.00021404,2]
[345113199,1734024650205,-500.0,0.00021404,2]
[345113200,1734024650215,-500.0,0.00021404,2]
[345113201,1734024650225,-500.0,0.00021404,2]
[345113202,1734024650234,-500.0,0.00021404,2]
[345113203,1734024650244,-500.0,0.00021404,2]
[345113204,1734024650254,-500.0,0.00021404,2]
[345113205,1734024650263,-500.0,0.00021404,2]
[345113206,1734024650273,-555.50786863,0.00021404,2]
[345113207,1734024650283,-500.0,0.00021404,2]
[345113208,1734024650293,-601.28,0.00021404,2]
[345113209,1734024650303,-500.0,0.00021404,2]
[345113210,1734024650314,-500.0,0.00021404,2]
[345113211,1734024650324,-500.0,0.00021404,2]
[345113212,1734024650333,-500.0,0.00021404,2]
[345113213,1734024650348,-500.0,0.00021404,2]
[345113214,1734024650359,-500.0,0.00021404,2]
[345113215,1734024650369,-500.0,0.00021404,2]
[345113216,1734024650380,-500.0,0.00021404,2]
[345113217,1734024650390,-194.3891303,0.00021404,2]
[345113218,1734024650399,-500.0,0.00021404,2]
[345113219,1734024650409,-500.0,0.00021419,2]
[345113220,1734024650420,-500.0,0.00021419,2]
[345113221,1734024650430,-500.0,0.00021419,2]
[345113222,1734024650440,-500.0,0.00021419,2]
[345113223,1734024650449,-598.45,0.00021419,2]
[345113224,1734024650459,-617.5,0.00021419,2]
[345113225,1734024650468,-500.0,0.00021419,2]
[345113226,1734024650478,-630.37,0.00021419,2]
[345113227,1734024650487,-500.0,0.00021419,2]
[345113228,1734024650498,-500.0,0.00021419,2]
[345113229,1734024650508,-500.0,0.00021419,2]
[345113230,1734024650518,-500.0,0.00021419,2]
[345113231,1734024650528,-500.0,0.00021419,2]
[345113232,1734024650538,-428.11146625,0.00021442,2]
[345113233,1734024650547,-300.0,0.000215,7]
[345113234,1734024650556,-1963.05202227,0.00021504,2]
[345113235,1734024650566,-4484.9003349,0.0002152,2]
[345113236,1734024650575,-1569.31981699,0.00021522,2]
[345113237,1734024650585,-500.0,0.00021541,2]
[345113238,1734024650595,-500.0,0.00021541,2]
[345113239,1734024650604,-678.38,0.00021541,2]
[345113240,1734024650613,-500.0,0.00021541,2]
[345113241,1734024650627,-653.16,0.00021541,2]
[345113242,1734024650637,-601.96,0.00021541,2]
[345113243,1734024650648,-500.0,0.00021541,2]
[345113244,1734024650658,-500.0,0.00021541,2]
[345113245,1734024650668,-500.0,0.00021541,2]
[345113246,1734024650678,-500.0,0.00021541,2]
[345113247,1734024650688,-500.0,0.00021541,2]
[345113248,1734024650698,-500.0,0.00021541,2]
[345113249,1734024650707,-728.32,0.00021541,2]
[345113250,1734024650716,-500.0,0.00021541,2]
[345113251,1734024650725,-500.0,0.00021541,2]
[345113252,1734024650735,-618.59,0.00021592,2]
[345113253,1734024650745,-500.0,0.00021592,2]
[345113254,1734024650754,-534.67,0.00021592,2]
[345113255,1734024650764,-500.0,0.00021592,2]
[345113256,1734024650774,-603.13,0.00021592,2]
[345113257,1734024650784,-500.0,0.00021592,2]
[345113258,1734024650795,-787.45,0.00021592,2]
[345113259,1734024650804,-888.7,0.00021592,2]
[345113260,1734024650814,-868.32,0.00021592,2]
[345113261,1734024650824,-500.0,0.00021592,2]
[345113262,1734024650834,-500.0,0.00021592,2]
[345113263,1734024650844,-500.0,0.00021592,2]
[345113264,1734024650853,-657.95,0.00021592,2]
[345113265,1734024650863,-330.95460249,0.00021592,2]
[345113266,1734024650873,-1421.73,0.00021592,2]
[345113267,1734024650883,-500.0,0.00021592,2]
[345113268,1734024650892,-500.0,0.00021592,2]
[345113269,1734024650902,-623.63,0.00021592,2]
[345113270,1734024650912,-399.1539794,0.00021592,2]
[345113271,1734024650922,-665.77,0.00021592,2]
[345113272,1734024650931,-500.0,0.00021592,2]
[345113273,1734024650942,-702.96,0.00021592,2]
[345113274,1734024650953,-500.0,0.00021592,2]
[345113275,1734024650964,-300.0,0.000216,7]
[345113276,1734024650974,-1963.05202227,0.00021616,2]
[345113277,1734024650984,-500.0,0.00021642,2]
[345113278,1734024650993,-500.0,0.00021642,2]
[345113279,1734024651003,-500.0,0.00021642,2]
[345113280,1734024651013,-500.0,0.00021642,2]
[345113281,1734024651023,-500.0,0.00021642,2]
[345113282,1734024651032,-500.0,0.00021642,2]
[345113283,1734024651042,-500.0,0.00021642,2]
[345113284,1734024651053,-500.0,0.00021642,2]
[345113285,1734024651062,-649.51,0.00021642,2]
[345113286,1734024651072,-500.0,0.00021642,2]
[345113287,1734024651082,-500.0,0.00021642,2]
[345113288,1734024651092,-500.0,0.00021642,2]
[345113289,1734024651102,-500.0,0.00021642,2]
[345113290,1734024651112,-500.0,0.00021642,2]
[345113291,1734024651121,-609.6,0.00021642,2]
[345113292,1734024651131,-500.0,0.00021642,2]
[345113293,1734024651142,-500.53,0.00021642,2]
[345113294,1734024651152,-500.0,0.00021642,2]
[345113295,1734024651162,-500.0,0.00021642,2]
[345113296,1734024651172,-558.36,0.00021642,2]
[345113297,1734024651182,-500.0,0.00021642,2]
[345113298,1734024651191,-500.0,0.00021642,2]
[345113299,1734024651201,-500.0,0.00021642,2]
[345113300,1734024651211,-987.01,0.00021643,2]
[345113301,1734024651221,-1437.18,0.00021643,2]
[345113302,1734024651230,-500.0,0.00021643,2]
[345113303,1734024651240,-500.0,0.00021643,2]
[345113304,1734024651249,-1075.73,0.00021643,2]
[345113305,1734024651258,-500.0,0.00021643,2]
[345113306,1734024651268,-500.0,0.00021643,2]
[345113307,1734024651277,-595.0,0.00021678,2]
[345113308,1734024651287,-500.0,0.00021678,2]
[345113309,1734024651298,-500.0,0.00021678,2]
[345113310,1734024651308,-500.0,0.00021678,2]
[345113311,1734024651318,-500.0,0.00021678,2]
[345113312,1734024651328,-914.89,0.00021678,2]
[345113313,1734024651338,-660.85,0.00021678,2]
[345113314,1734024651350,-500.0,0.00021678,2]
[345113315,1734024651360,-500.0,0.00021678,2]
[345113316,1734024651369,-500.0,0.00021678,2]
[345113317,1734024651379,-500.0,0.00021678,2]
[345113318,1734024651390,-500.0,0.00021678,2]
[345113319,1734024651400,-368.83742622,0.00021678,2]
[345113320,1734024651410,-500.0,0.00021678,2]
[345113321,1734024651420,-500.0,0.00021678,2]
[345113322,1734024651430,-500.0,0.00021678,2]
[345113323,1734024651439,-500.0,0.00021678,2]
[345113324,1734024651449,-500.0,0.00021678,2]
[345113325,1734024651458,-500.0,0.00021678,2]
[345113326,1734024651468,-1213.45,0.00021678,2]
[345113327,1734024651477,-500.0,0.00021678,2]
[345113328,1734024651487,-500.0,0.00021678,2]
[345113329,1734024651496,-500.0,0.00021678,2]
[345113330,1734024651506,-500.0,0.00021678,2]
[345113331,1734024651515,-500.0,0.00021678,2]
[345113332,1734024651525,-500.0,0.00021678,2]
[345113333,1734024651534,-500.0,0.00021678,2]
[345113334,1734024651544,-1000.0,0.00021678,2]
[345113335,1734024651553,-1010.93,0.00021678,2]
[345113336,1734024651563,-500.0,0.00021678,2]
[345113337,1734024651572,-500.0,0.00021678,2]
[345113338,1734024651581,-500.0,0.00021678,2]
[345113339,1734024651592,-500.0,0.00021678,2]
[345113340,1734024651603,-500.0,0.00021678,2]
[345113341,1734024651612,-500.0,0.00021678,2]
[345113342,1734024651622,-500.0,0.00021678,2]
[345113343,1734024651797,-641.98590271,0.00021678,2]
[345113344,1734024651807,-500.0,0.00021678,2]
[345113345,1734024651817,-500.0,0.00021678,2]
[345113346,1734024651826,-601.28,0.00021678,2]
[345113347,1734024651835,-500.0,0.00021678,2]
[345113348,1734024651845,-500.0,0.00021678,2]
[345113349,1734024651854,-500.0,0.00021678,2]
[345113350,1734024651863,-500.0,0.00021678,2]
[345113351,1734024651872,-500.0,0.00021678,2]
[345113352,1734024651884,-604.84328773,0.00021678,2]
[345113353,1734024651898,-500.0,0.00021678,2]
[345113354,1734024651907,-501.73687063,0.00021678,2]
[345113355,1734024651917,-500.0,0.00021678,2]
[345113356,1734024651930,-500.0,0.00021693,2]
[345113357,1734024651939,-642.13501426,0.00021693,2]
[345113358,1734024651951,-500.0,0.00021693,2]
[345113359,1734024651963,-500.0,0.00021693,2]
[345113360,1734024651974,-598.45,0.00021693,2]
[345113361,1734024651984,-617.5,0.00021693,2]
[345113362,1734024651994,-500.0,0.00021693,2]
[345113363,1734024652003,-630.37,0.00021693,2]
[345113364,1734024652014,-500.0,0.00021693,2]
[345113365,1734024652023,-500.0,0.00021693,2]
[345113366,1734024652034,-500.0,0.00021693,2]
[345113367,1734024652043,-500.0,0.00021693,2]
[345113368,1734024652053,-500.0,0.00021693,2]
[345113369,1734024652063,-300.0,0.000217,7]
[345113370,1734024652072,-7221.99374994,0.000217,2]
[345113371,1734024652081,-1963.05202227,0.00021728,2]
[345113372,1734024652090,-387.69,0.00021737,2]
[345113373,1734024652099,-1000.0,0.00021767,2]
[345113374,1734024652109,-956.0,0.000218,7]
[345113375,1734024652118,-500.0,0.00021815,2]
[345113376,1734024652127,-500.0,0.00021815,2]
[345113377,1734024652141,-678.38,0.00021815,2]
[345113378,1734024652150,-500.0,0.00021815,2]
[345113379,1734024652159,-653.16,0.00021815,2]
[345113380,1734024652169,-601.96,0.00021815,2]
[345113381,1734024652178,-500.0,0.00021815,2]
[345113382,1734024652187,-500.0,0.00021815,2]
[345113383,1734024652196,-500.0,0.00021815,2]
[345113384,1734024652205,-500.0,0.00021815,2]
[345113385,1734024652214,-500.0,0.00021815,2]
[345113386,1734024652223,-500.0,0.00021815,2]
[345113387,1734024652232,-728.32,0.00021815,2]
[345113388,1734024652241,-500.0,0.00021815,2]
[345113389,1734024652250,-500.0,0.00021815,2]
[345113390,1734024652259,-668.84,0.00021826,30]
[345113391,1734024652268,-1963.05202227,0.0002184,2]
[345113392,1734024652277,-618.59,0.00021866,2]
[345113393,1734024652286,-533.35598039,0.00021866,2]
[345113394,1734024652295,-534.67,0.00021866,2]
[345113395,1734024652304,-500.0,0.00021866,2]
[345113396,1734024652313,-603.13,0.00021866,2]
[345113397,1734024652322,-500.0,0.00021866,2]
[345113398,1734024652331,-787.45,0.00021866,2]
[345113399,1734024652343,-888.7,0.00021866,2]
[345113400,1734024652353,-868.32,0.00021866,2]
[345113401,1734024652362,-657.95,0.00021866,2]
[345113402,1734024652371,-1421.73,0.00021866,2]
[345113403,1734024652380,-623.63,0.00021866,2]
[345113404,1734024652393,-665.77,0.00021866,2]
[345113405,1734024652403,-702.96,0.00021866,2]
[345113406,1734024652412,-500.0,0.00021866,2]
[345113407,1734024652422,-282.09264017,0.0002187,2]
[345113408,1734024652431,-1418.208,0.00021881,2]
[345113409,1734024652441,-409.11,0.000219,31]
[345113410,1734024652451,-409.11,0.000219,31]
[345113411,1734024652461,-409.11,0.000219,31]
[345113412,1734024652470,-409.11,0.000219,31]
[345113413,1734024652479,-409.11,0.000219,31]
[345113414,1734024652488,-409.11,0.000219,31]
[345113415,1734024652499,-409.11,0.000219,31]
[345113416,1734024652509,-409.11,0.000219,31]
[345113417,1734024652518,-409.11,0.000219,31]
[345113418,1734024652527,-409.11,0.000219,31]
[345113419,1734024652537,-409.11,0.000219,31]
[345113420,1734024652547,-409.11,0.000219,31]
[345113421,1734024652556,-409.11,0.000219,31]
[345113422,1734024652566,-409.11,0.000219,31]
[345113423,1734024652576,-409.11,0.000219,31]
[345113424,1734024652585,-409.11,0.000219,31]
[345113425,1734024652595,-200.0,0.000219,2]